Cogmind - Beta 16 @@@ ROGUE MODE // 2025.10.24 @ 02:14:30 Player: Miwa Result: Self-destructed Performance ------------- Evolutions (2) 1000 Regions Visited (5) 1000 Robots Destroyed (75) 375 Value Destroyed (1933) 1933 Prototype IDs (18) 360 Alien Tech Used (0) 0 Bonus (0) 0 TOTAL SCORE: 4668 Bonus ------- None Cogmind --------- Core Integrity 353/550 Matter 300/300 Energy 100/100 System Corruption 5% Temperature Cool (70) Movement Hovering (46) Location -8/Storage Parts ------- > --- POWER (2) -------- (None) > --- PROPULSION (4) --- Aerolev Unit Aerolev Unit Surge Thruster Surge Thruster > --- UTILITY (3) ------ Advanced Visual Processing Unit Signal Interpreter Hacking Suite > --- WEAPON (2) ------- Advanced Beam Rifle Ripper > --- INVENTORY (5) ---- Surge Thruster Surge Thruster ECM Suite Gauss Rifle Mining Laser Peak State ------------ > --- POWER ------------ Heavy Ion Engine > --- PROPULSION ------- Flightbrick > --- UTILITY ---------- Medium Storage Unit Weight Redist. System Machine Analyzer Advanced Visual Processing Unit Hacking Suite Hacking Suite > --- WEAPON ----------- Gauss Rifle Ripper > --- INVENTORY -------- Heavy Ion Engine Surge Thruster Surge Thruster Surge Thruster Surge Thruster Advanced Visual Processing Unit ECM Suite Pulse Rifle Mining Laser [Rating: 64] Favorites ----------- Power Ion Engine Engine Ion Engine Power Core Light Nuclear Core Propulsion Light Treads Treads Light Treads Leg Aluminum Leg Wheel Wheel Hover Unit Aerolev Unit Flight Unit Flightbrick Utility Hacking Suite Device Improved Terrain Scanner Storage Medium Storage Unit Processor Advanced Visual Processing Unit Hackware Hacking Suite Weapon Small Laser Energy Gun Small Laser Energy Cannon Subdweller Beam Cannon Ballistic Gun Gauss Rifle Ballistic Cannon Light Cannon Launcher Grenade Launcher Special Weapon Mining Laser Slashing Weapon Ripper Build | -11 -10 -10 -10 -8 -8 ------- Run | Yrd Mat Min Sub Mat Sto Slots Evolved 4 | . . . . 4 . Power 1 | . . . . 1 . Propulsion 2 | . . . . 2 . Utility 1 | . . . . 1 . Weapon . | . . . . . . Parts Attached 57 | 7 6 7 13 7 17 Power 11 | 1 1 1 3 1 4 Engine 10 | 1 1 1 3 1 3 Core 1 | . . . . . 1 Reactor . | . . . . . . Propulsion 17 | 2 . 4 5 1 5 Treads 4 | 2 . . 2 . . Leg 2 | . . 2 . . . Wheel 5 | . . 2 3 . . Hover 2 | . . . . . 2 Flight 4 | . . . . 1 3 Utility 12 | 2 3 . . 2 5 Device 2 | 1 . . . . 1 Storage 4 | 1 2 . . . 1 Processor 4 | . . . . 1 3 Hackware 2 | . 1 . . 1 . Protection . | . . . . . . Artifact . | . . . . . . Weapon 17 | 2 2 2 5 3 3 Energy Gun 6 | 2 1 1 . 1 1 Energy Cannon 2 | . . . 2 . . Ballistic Gun 1 | . . . . . 1 Ballistic Cannon 2 | . . 1 1 . . Launcher 2 | . 1 . . . 1 Special Weapon 3 | . . . 1 2 . Impact Weapon . | . . . . . . Slashing Weapon 1 | . . . 1 . . Piercing Weapon . | . . . . . . Special Melee Weapon . | . . . . . . Unidentified Prototypes 6 | . . . . 1 5 Parts Lost 10 | . . 3 1 1 5 Power 1 | . . . . . 1 Propulsion 2 | . . 2 . . . Utility 3 | . . . . . 3 Weapon 4 | . . 1 1 1 1 Highest Loss Streak 3 | . . 2 1 1 3 To Critical Strikes . | . . . . . . Average Backups 9 | 6 8 9 9 8 9 Power . | . 1 1 . . . Propulsion 3 | 3 2 3 2 3 3 Utility 2 | . 2 3 2 1 2 Weapon 2 | 1 2 1 2 3 2 Tool/Special . | . . . . . . Unused Backups 16 | . 5 . 4 1 6 Power 1 | . . . 1 . . Propulsion 11 | . 4 . 2 1 4 Utility 2 | . . . 1 . 1 Weapon 2 | . 1 . . . 1 Tool/Special . | . . . . . . Average Slot Usage (%) 86 | . 100 94 98 51 58 Engine 12 | . 14 14 14 7 8 Treads 9 | . 28 11 3 . . Leg 2 | . . 7 . . . Wheel 6 | . . 3 23 . . Flight 1 | . . . . 6 8 Device 1 | . 4 . . . . Storage 12 | . 14 14 14 7 6 Processor 2 | . . . . 3 10 Hackware 12 | . 9 14 14 13 12 Energy Gun 14 | . 26 25 2 . . Energy Cannon 3 | . . . 14 . . Ballistic Cannon 1 | . . 1 6 . . Special Weapon 1 | . . . 3 4 . Slashing Weapon 1 | . . . 1 6 6 Peak Build Rating 64 | 9 11 11 18 60 64 Average Rating 20 | 6 9 10 13 53 53 On Entrance 17 | . 9 11 11 18 57 Avg Prop Armor Cover (%) 12 | . . 9 . . 15 Naked Turns . | . . . . . . Heaviest Build 33 | 11 19 21 33 33 29 Greatest Support 40 | 40 40 40 40 24 30 Greatest Overweight (x) 7 | 2 . 2 7 1 4 Average Overweight (x) . | . . . . . . Largest Inventory Capacity 20 | 8 20 10 10 10 10 Average Capacity 9 | 7 9 10 10 10 9 Most Carried 10 | 8 10 10 10 10 10 Average Carried 9 | 6 8 9 9 8 9 Final Capacity 10 | 8 10 10 10 10 5 Final Carried 10 | 7 9 9 10 10 5 Class Distribution -------------------- 45% | Mutant 42% | Scavenger-Mutant 11% | Hacker-Mutant Dominant Class ---------------- Mutant | -10/Materials Scavenger-Mutant | -10/Mines Scavenger-Mutant | -10/Subcaves Hacker-Mutant | -8/Materials Hacker-Mutant | -8/Storage Resources | -11 -10 -10 -10 -8 -8 ----------- Run | Yrd Mat Min Sub Mat Sto Matter Collected 1065 | 270 90 204 201 80 220 Remotely . | . . . . . . Salvage Created 2960 | 186 285 650 220 590 1029 Parts 173 | 14 22 43 14 35 45 Haulers Intercepted 2 | . . . . . 2 Recyclers Shooed 9 | . . 2 . 5 2 Parts Field Recycled . | . . . . . . Retrieved Matter . | . . . . . . Parts Self-Destructed 4 | . . . 4 . . Prevented . | . . . . . . Parts Restored . | . . . . . . Kills | -11 -10 -10 -10 -8 -8 ------- Run | Yrd Mat Min Sub Mat Sto Combat Hostiles Destroyed 43 | . 6 10 7 7 13 Melee 21 | . . . 1 7 13 Guns 13 | . 4 8 1 . . Cannons 5 | . . . 5 . . AOE 4 | . 2 2 . . . Classes Destroyed 14 | 2 5 2 1 1 3 Worker 2 | . 1 1 . . . Builder 2 | . . 1 . 1 . Tunneler 8 | 5 . 3 . . . Hauler 2 | . . . . . 2 Recycler 10 | 1 . 5 . 3 1 Mechanic 2 | . . . . . 2 Operator 3 | . 2 . . . 1 Watcher 3 | . 1 . . . 2 Swarmer 8 | . 1 6 1 . . Grunt 13 | . 5 2 . 1 5 Brawler 1 | . . . . . 1 Sentry 14 | . . 2 1 4 7 Specialist 2 | . . . . 2 . Subdweller 5 | . . . 5 . . Best Kill Streak 10 | 2 2 4 2 8 10 Combat Bots Only 3 | . 2 3 2 3 3 Max Kills in Single Turn 2 | 1 2 2 2 1 1 Gunslinging . | . . . . . . Exploded 2 | . 2 1 . . . Melee 1 | . . . 1 1 1 Uniques/NPCs Destroyed . | . . . . . . Combat | -11 -10 -10 -10 -8 -8 -------- Run | Yrd Mat Min Sub Mat Sto Hostile Shots Fired 274 | . 48 51 20 35 120 Missed 73 | . 19 7 6 8 33 Hits 201 | . 29 44 14 27 87 Melee 2 | . . . . . 2 Projectile 199 | . 29 44 14 27 85 Critical Strikes 2 | . . 1 . . 1 Damage Taken 2904 | . 377 497 251 419 1360 Core 442 | . 62 137 46 65 132 Absorbed by Shields . | . . . . . . Regen/Repaired (Parts) 35 | . . . . . 35 Core Remaining (%) 51 | 100 . . 2 . . Volleys Fired 129 | 11 41 46 21 4 6 Largest 2 | 2 2 2 2 1 1 Hottest 180 | 80 105 105 180 20 100 Shots Fired 237 | 22 80 91 34 4 6 Gun 184 | 22 79 77 4 . 2 Cannon 27 | . . 6 21 . . Launcher 9 | . 1 8 . . . Special 17 | . . . 9 4 4 Kinetic 10 | . . 6 4 . . Thermal 218 | 22 79 77 30 4 6 Explosive 9 | . 1 8 . . . Electromagnetic . | . . . . . . Robot Hit Streak 11 | 4 9 11 6 2 1 Robot Miss Streak 6 | 2 6 3 2 2 1 Penetration Max . | . . . . . . Secondary Targets 1 | . 1 . . . . Max Gunslinging Chain 1 | . 1 . . . . Shots Hit Robots 205 | 12 40 52 15 22 64 Core Hits 89 | 7 16 27 8 11 20 Critical Kills . | . . . . . . Critical Parts Destroyed . | . . . . . . Critical Strikes 7 | . . 1 . . 6 Burn 1 | . . 1 . . . Sever 6 | . . . . . 6 Melee Attacks 122 | . . . 2 28 92 Impact . | . . . . . . Slashing 122 | . . . 2 28 92 Piercing . | . . . . . . Sneak Attacks 13 | . . . . 4 9 Combat Hostiles . | . . . . . . Follow-up Attacks . | . . . . . . Damage Inflicted 5578 | 137 598 910 381 918 2634 Guns 1391 | 137 527 639 48 . 40 Cannons 299 | . . 48 251 . . Explosions 286 | . 71 215 . . . Melee 3592 | . . . 82 916 2594 Ramming 8 | . . 8 . . . Kinetic 102 | . . 48 54 . . Thermal 1590 | 137 527 639 245 2 40 Explosive 286 | . 71 215 . . . Electromagnetic . | . . . . . . Impact . | . . . . . . Slashing 3592 | . . . 82 916 2594 Piercing . | . . . . . . Highest Corruption 5 | . . . . . 5 Average Corruption 4 | . . . . . 4 Corruption Purged . | . . . . . . Corruption Blocked . | . . . . . . Effects 4 | . . . . . 4 Message Errors 1 | . . . . . 1 Heat Flow Errors 1 | . . . . . 1 Energy Discharges 1 | . . . . . 1 Data Loss (minor) 1 | . . . . . 1 Overload Shots . | . . . . . . Overflow Damage 348 | . . 14 . 77 257 Projectiles 5 | . . 5 . . . Explosions 9 | . . 9 . . . Melee 334 | . . . . 77 257 Knockbacks 2 | . . . 2 . . Impact . | . . . . . . Kinetic 2 | . . . 2 . . Secondary . | . . . . . . Self-Inflicted Damage 14 | . . 14 . . . Shots 1 | . . 1 . . . Rammed 1 | . . 1 . . . Targets Rammed 1 | . . 1 . . . Kicked . | . . . . . . Crushed . | . . . . . . Highest Temperature 390 | 54 271 390 156 . 208 Average Temperature 93 | 19 87 118 64 . 62 Received Heat Transfer 1053 | . 114 147 27 126 639 Effects 2 | . . 2 . . . Shutdowns 1 | . . 1 . . . Short Circuit 1 | . . 1 . . . Siege Activations . | . . . . . . Martial Activations . | . . . . . . Shielding Activations . | . . . . . . Robots Disrupted . | . . . . . . Combat Hostiles . | . . . . . . Robots Corrupted . | . . . . . . Combat Hostiles . | . . . . . . Parts Fried . | . . . . . . Impact Corruptions . | . . . . . . Robots Melted . | . . . . . . Combat Hostiles . | . . . . . . Parts Melted 1 | . . 1 . . . Heat Transferred 3511 | 300 1194 1548 370 25 74 Parts Sabotaged . | . . . . . . Parts Stolen . | . . . . . . Parts Stripped . | . . . . . . Power Chain Reactions . | . . . . . . Alert | -11 -10 -10 -10 -8 -8 ------- Run | Yrd Mat Min Sub Mat Sto Maximum Alert Level . | . . . . . . Low Security (%) 100 | 100 100 100 . 100 100 Level 1 . | . . . . . . Level 2 . | . . . . . . Level 3 . | . . . . . . Level 4 . | . . . . . . Level 5 . | . . . . . . High Security . | . . . . . . Max Security . | . . . . . . Peak Influence 187 | 10 65 79 . 140 187 Initial 50 | . . . . 11 50 Average 34 | 1 10 20 . 79 82 Influence Increases 1322 | 30 187 329 40 241 495 Destroy 0b10 Robot/C 760 | . 120 200 40 140 260 Destroy 0b10 Robot/NC 160 | 30 20 50 . 20 40 Destroy Leader 210 | . 32 30 . 50 98 Successful Hack 5 | . . . . . 5 Disable Machine 45 | . 15 15 . . 15 Destroy Structure 37 | . . 34 . 1 2 Partial Spotted 60 | . . . . 30 30 Lose Combat Pursuer 45 | . . . . . 45 Influence Decreases 1153 | 30 187 274 73 142 447 Entered New Map 111 | . . . 29 11 71 Time Decay 961 | 30 187 253 44 121 326 Lost Part 81 | . . 21 . 10 50 Squads Dispatched 8 | . 2 . . 2 4 Investigation 1 | . . . . . 1 Extermination . | . . . . . . Reinforcement 5 | . 2 . . 2 1 Assault . | . . . . . . Garrison 2 | . . . . . 2 Intercept . | . . . . . . Searches Triggered . | . . . . . . Construction Impeded . | . . . . . . Haulers Reinforced . | . . . . . . Active Scanning Responses . | . . . . . . Cargo Convoy Interrupts . | . . . . . . Stealth | -11 -10 -10 -10 -8 -8 --------- Run | Yrd Mat Min Sub Mat Sto Distress Signals 5 | . 2 . . 2 1 Communications Jammed . | . . . . . . Distress Signals . | . . . . . . Times Spotted 77 | . 16 10 7 16 28 Peak Tracking Total 8 | . 4 3 2 8 6 Tactical Retreats 1 | . . . . . 1 Traps | -11 -10 -10 -10 -8 -8 ------- Run | Yrd Mat Min Sub Mat Sto Traps Triggered 2 | . 2 . . . . Indirectly . | . . . . . . Trap Hack Attempts . | . . . . . . Triggered . | . . . . . . Disarmed 16 | . . . . . 16 Reprogrammed . | . . . . . . Reused 1 | . . . 1 . . Traps Extracted . | . . . . . . Installed 1 | . . . 1 . . Triggered . | . . . . . . Machines | -11 -10 -10 -10 -8 -8 ---------- Run | Yrd Mat Min Sub Mat Sto Machines Disabled 6 | . 1 3 1 . 1 Max in Single Turn 1 | . 1 1 1 . 1 Machines Repaired . | . . . . . . Machines Dismantled . | . . . . . . Machines Sabotaged . | . . . . . . Overloaded Fab Kills . | . . . . . . Hacking | -11 -10 -10 -10 -8 -8 --------- Run | Yrd Mat Min Sub Mat Sto Machines Accessed 9 | . 2 . 1 1 5 Terminals 5 | . 1 . . 1 3 Fabricators . | . . . . . . Repair Stations 1 | . . . . . 1 Recycling Units 1 | . 1 . . . . Scanalyzers . | . . . . . . Garrison Access 1 | . . . . . 1 Total Hacks 36 | . 3 . 9 2 22 Successful 24 | . 2 . 9 . 13 Failed 12 | . 1 . . 2 9 Catastrophic . | . . . . . . Database Lockouts . | . . . . . . Manual 3 | . . . 1 . 2 Terminals 19 | . 2 . . 2 15 Fabricators . | . . . . . . Repair Stations 4 | . . . . . 4 Recycling Units 1 | . 1 . . . . Scanalyzers . | . . . . . . Garrison Access 3 | . . . . . 3 Terminal Hacks 17 | . 1 . 9 . 7 Record 8 | . . . 8 . . Part Schematic 1 | . . . . . 1 Alert Level 1 | . 1 . . . . Locate Traps 1 | . . . . . 1 Disarm Traps 3 | . . . . . 3 Maintenance Status 1 | . . . . . 1 Zone Layout 1 | . . . . . 1 Proto ID Catalog 1 | . . . 1 . . Fabricator Hacks . | . . . . . . Repair Station Hacks 4 | . . . . . 4 Scan Component 2 | . . . . . 2 Repair 2 | . . . . . 2 Recycling Unit Hacks 1 | . 1 . . . . Report Inventory 1 | . 1 . . . . Scanalyzer . | . . . . . . Garrison Access Hacks 1 | . . . . . 1 Coupler Status 1 | . . . . . 1 Unauthorized Hacks 1 | . . . . . 1 Terminals 1 | . . . . . 1 Botnet 1 | . . . . . 1 Fabricators . | . . . . . . Repair Stations . | . . . . . . Recycling Units . | . . . . . . Scanalyzers . | . . . . . . Garrison Access . | . . . . . . Data Cores Recovered . | . . . . . . Used . | . . . . . . Hacking Detections 5 | . 1 . . 1 3 Full Trace Events 1 | . . . . . 1 Feedback Events . | . . . . . . Feedback Blocked . | . . . . . . Robot Schematics Acquired . | . . . . . . Robots Built . | . . . . . . Authchips . | . . . . . . Time . | . . . . . . Total Robot Build Rating . | . . . . . . Part Schematics Acquired 1 | . . . . . 1 Parts Built . | . . . . . . Authchips . | . . . . . . Time . | . . . . . . Total Part Build Rating . | . . . . . . Part Studies Acquired . | . . . . . . Parts Repaired 2 | . . . . . 2 Time 82 | . . . . . 82 Parts Recycled . | . . . . . . Recycled Matter . | . . . . . . Retrieved Matter . | . . . . . . Retrieved Components . | . . . . . . Parts Scanalyzed . | . . . . . . Part Schematics Acquired . | . . . . . . Parts Damaged . | . . . . . . Bothacking | -11 -10 -10 -10 -8 -8 ------------ Run | Yrd Mat Min Sub Mat Sto Used RIF Installer . | . . . . . . Robots Hacked . | . . . . . . Non-combat . | . . . . . . Combat . | . . . . . . Robot Hacks Applied . | . . . . . . Relay Couplers Released . | . . . . . . Fabnet Peak Effective % . | . . . . . . Robots Rewired . | . . . . . . Allies Hacked . | . . . . . . Hacks Repelled . | . . . . . . Allies | -11 -10 -10 -10 -8 -8 -------- Run | Yrd Mat Min Sub Mat Sto Total Allies . | . . . . . . Largest Group . | . . . . . . Highest-Rated Group . | . . . . . . Highest-Rated Ally . | . . . . . . Total Orders . | . . . . . . Ally Attacks . | . . . . . . Total Damage . | . . . . . . Kills . | . . . . . . Allies Corrupted . | . . . . . . Allies Melted . | . . . . . . Intel | -11 -10 -10 -10 -8 -8 ------- Run | Yrd Mat Min Sub Mat Sto Active Infowar (turns) 1147 | 71 244 . . 124 708 Optics 707 | . . . . 124 583 Terrain 315 | 71 244 . . . . Machine Analysis 307 | . . . . . 307 Robot Analysis Total . | . . . . . . Derelict Logs Recovered 2 | . . 1 1 . . Drone Launches . | . . . . . . Drone Recoveries . | . . . . . . Exploration | -11 -10 -10 -10 -8 -8 ------------- Run | Yrd Mat Min Sub Mat Sto Turns Passed 4274 | 297 721 1353 917 263 723 Spaces Moved 2957 | 166 357 810 728 335 561 Core 28 | 27 . . 1 . . Treads 887 | 139 357 321 70 . . Legs 276 | . . 276 . . . Wheels 870 | . . 213 657 . . Hover 110 | . . . . . 110 Flight 786 | . . . . 335 451 Fastest Speed 40 | 50 160 95 80 40 40 Average Speed 106 | 147 160 147 107 40 42 Slowest Speed 400 | 160 160 260 400 80 315 Overloaded Moves . | . . . . . . Propulsion Burnouts . | . . . . . . Robots Hopped . | . . . . . . Potential Cave-ins . | . . . . . . Cave-ins Triggered . | . . . . . . Exploration Rate (%) 44 | 8 54 92 42 23 45 Regions Visited 5 Branch Regions 3 Pre-discovered Areas . | . . . . . . Known Exits Taken 1 | . . . . 1 . Unknown Exits Taken 4 | 1 1 1 1 . . Scrap Searched 6 | . . 1 5 . . Spaces Dug 7 | . . . . 1 6 Terrain Destroyed 58 | . . 49 2 1 6 Melee 3 | . . . . 1 2 Projectile 6 | . . . 2 . 4 AOE 49 | . . 49 . . . Terrain Rammed . | . . . . . . Walls Destroyed . | . . . . . . Machines Disabled . | . . . . . . Actions | -11 -10 -10 -10 -8 -8 --------- Run | Yrd Mat Min Sub Mat Sto Total 3631 | 195 428 879 813 418 898 Wait 232 | . 2 4 13 27 186 Move 2952 | 165 356 809 727 334 561 Hop . | . . . . . . Pick Up 57 | 12 11 3 9 9 13 Fast Attach 20 | 2 . 3 6 2 7 Attach 28 | 5 . 3 4 5 11 Detach 4 | . . . . 2 2 Swap 27 | . 8 5 9 1 4 Drop 58 | . 10 5 21 6 16 Fire 129 | 11 41 46 21 4 6 Melee 122 | . . . 2 28 92 Ram . | . . . . . . Kick . | . . . . . . Crush 1 | . . 1 . . . Escape Stasis . | . . . . . . Rewire . | . . . . . . Trap 1 | . . . 1 . . Miscellaneous . | . . . . . . Route ------- -11/Scrapyard -10/Materials (discovered 2 exits: [*Mat] / [*Min]) -10/Mines (discovered 2 exits: [*Mat] / *Sub) -10/Subcaves (discovered 2 exits: *Mat x2) -8/Materials (discovered 2 exits: *Sto x2) -8/Storage History --------- Turn | Location | Event 4 | -11/Scrapyard | Discovered new exit (range 16) 298 | -11/Scrapyard | Entered Materials 333 | -10/Materials | Build established: Mutant 673 | -10/Materials | Discovered new exit (range 5) 922 | -10/Materials | Discovered new exit (range 5) 998 | -10/Materials | Derelicts attacked the area 1019 | -10/Materials | Entered Mines 1039 | -10/Mines | Learned 8 Materials zone layouts 1548 | -10/Mines | Discovered new exit (range 8) 1703 | -10/Mines | Core integrity fell below 50% 1851 | -10/Mines | Build established: Scavenger-Mutant 2317 | -10/Mines | Discovered new exit (range 6) 2372 | -10/Mines | Entered Subcaves 2378 | -10/Subcaves | Shifting Twisted Machinery released Sub. Beam Cannon 2387 | -10/Subcaves | Shifting Twisted Machinery released Ripper 2500 | -10/Subcaves | Core integrity fell below 20% 2592 | -10/Subcaves | A swath of the cavern ceiling suddenly collapsed 2666 | -10/Subcaves | Ambushed by Subdweller buried in earth 2905 | -10/Subcaves | Shifting Twisted Machinery released Sub. Beam Cannon 2930 | -10/Subcaves | Shifting Twisted Machinery released Sub. Machine Gun 2954 | -10/Subcaves | Discovered new exit (range 15) 3042 | -10/Subcaves | Learned Materials security intel 3056 | -10/Subcaves | Visited 4L-MR0's lab 3103 | -10/Subcaves | Found Flightbrick 3198 | -10/Subcaves | Discovered new exit (range 11) 3289 | -10/Subcaves | Entered Materials 3289 | -8/Materials | Evolved 4 slots: Power x1, Propulsion x2, Utility x1 3290 | -8/Materials | Identified exit to Storage 3292 | -8/Materials | Attached Flightbrick, gained temporary slots: Utility x3 3552 | -8/Materials | Entered Storage 3841 | -8/Storage | Repaired Ripper 3882 | -8/Storage | Repaired Adv. Visual Processing Unit 3907 | -8/Storage | Build established: Hacker-Mutant 4099 | -8/Storage | Lost 3 parts (3u) 4161 | -8/Storage | Garrison activated, responded to threat 4275 | -8/Storage | Self-destructed Last Messages --------------- Dropped Adv. EMP Blaster. Acquired Prototype Energy Gun. Identified Adv. Beam Rifle. K-01 Serf collects debris. Acquired 53 matter. Acquired 42 matter. Acquired 5 matter. Connecting with Garrison Access... >>Couplers Installed: Relay Coupler [Hunter] (10) Relay Coupler [Swarmer] (17) Relay Coupler [Grunt] (20) ALERT: Suspicious activity at Garrison Access S001. Dispatching Investigation squad. R-06 Scavenger collects Lgt. Treads. R-06 Scavenger collects Heat Sink. %QC9N